bitfinex-derivatives/quotes_BTCF0:USTF0_20260113
["timestamp","ask_amount","ask_price","bid_price","bid_amount"]
[1768296344618,0.09181502,92545.0,92536.0,0.010817]
[1768296345120,0.09181502,92545.0,92524.0,0.089177]
[1768296345522,0.10237823,92545.0,92532.0,0.010817]
[1768296346023,0.09181502,92545.0,92532.0,0.010817]
[1768296346320,0.10237823,92543.0,92530.0,0.010817]
[1768296346513,0.01056321,92549.0,92530.0,0.010817]
[1768296346715,0.10237823,92549.0,92533.0,0.010817]
[1768296347119,0.09181502,92549.0,92533.0,0.010817]
[1768296348013,0.09181502,92547.0,92530.0,0.010818]
[1768296348214,0.01022337,92544.0,92530.0,0.010818]
[1768296349022,0.10203839,92544.0,92526.0,0.010818]
[1768296349226,0.09181502,92542.0,92529.0,0.010818]
[1768296349524,0.09181502,92542.0,92520.0,0.14598885]
[1768296349724,0.09181502,92542.0,92520.0,0.09209215]
[1768296349920,0.09181502,92542.0,92531.0,0.010817]
[1768296350136,0.10151962,92541.0,92519.0,0.09736]
[1768296350328,0.10151962,92541.0,92528.0,0.010818]
[1768296350622,0.10151962,92541.0,92531.0,0.010817]
[1768296351015,0.10068725,92540.0,92521.0,0.010819]
[1768296351218,0.11150425,92539.0,92521.0,0.010819]
[1768296351419,0.10068725,92539.0,92521.0,0.010819]
[1768296351921,0.12981413,92531.0,92518.0,0.010819]
[1768296352316,0.09181502,92535.0,92518.0,0.010819]
[1768296352517,0.10068725,92535.0,92518.0,0.010819]
[1768296353020,0.10133499,92529.0,92510.0,0.12981413]
[1768296353225,0.09181502,92525.0,92510.0,0.12981413]
[1768296353520,0.23244615,92540.0,92520.0,0.010819]
[1768296353724,0.12092569,92539.0,92517.0,0.09209215]
[1768296353925,0.02356569,92538.0,92523.0,0.010818]
[1768296354122,0.02356569,92537.0,92523.0,0.010818]
[1768296354426,0.09181502,92538.0,92519.0,0.010819]
[1768296354627,0.02367314,92537.0,92519.0,0.010819]
[1768296354827,0.09181502,92538.0,92517.0,0.09209215]
[1768296355024,0.11548815,92537.0,92517.0,0.010819]
[1768296355227,0.12981413,92530.0,92517.0,0.010819]
[1768296355728,0.09181502,92536.0,92517.0,0.010819]
[1768296355929,0.09181502,92536.0,92519.0,0.010819]
[1768296357214,0.09181502,92536.0,92521.0,0.010819]
[1768296357633,0.09181502,92536.0,92512.0,0.09209215]
[1768296357826,0.10457216,92549.0,92531.0,0.010817]
[1768296358024,0.12981413,92541.0,92524.0,0.10291015]
[1768296358330,0.12981413,92541.0,92520.0,0.14063313]
[1768296358331,0.09181502,92536.0,92520.0,0.14063313]
[1768296359228,0.09181502,92536.0,92524.0,0.010818]
[1768296359922,0.11011714,92537.0,92520.0,0.12981413]
[1768296359923,0.09736,92537.0,92520.0,0.22190628]
[1768296360327,0.09736,92537.0,92521.0,0.09209215]
[1768296360727,0.09736,92537.0,92515.0,0.09209215]
[1768296360921,0.09736,92537.0,92520.0,0.12981413]
[1768296361319,0.09736,92537.0,92518.0,0.09209215]
[1768296361521,0.09736,92537.0,92520.0,0.12981413]
[1768296361722,0.09736,92537.0,92520.0,0.22190628]
[1768296362333,0.09736,92542.0,92532.0,0.010817]
[1768296362726,0.09736,92542.0,92523.0,0.09209215]
[1768296363031,0.09736,92542.0,92530.0,0.12981413]
[1768296364317,0.09736,92542.0,92533.0,0.010817]
[1768296364927,0.09181502,92544.0,92533.0,0.010817]
[1768296365138,0.09736,92543.0,92533.0,0.010817]
[1768296366726,0.010814,92560.0,92540.0,0.10933291]
[1768296366927,0.09736,92559.0,92540.0,0.23914704]
[1768296367127,0.09441306,92558.0,92542.0,0.010816]
[1768296367739,0.09441306,92564.0,92548.0,0.12981413]
[1768296367932,0.09441306,92564.0,92550.0,0.12981413]
[1768296368132,0.09441306,92564.0,92546.0,0.010816]
[1768296368133,0.09736,92563.0,92546.0,0.010816]
[1768296368334,0.09441306,92564.0,92546.0,0.010816]
[1768296370429,0.09441306,92564.0,92541.0,0.19221062]
[1768296371340,0.09441306,92564.0,92550.0,0.12981413]
[1768296371540,0.09736,92563.0,92550.0,0.12981413]
[1768296372035,0.09736,92563.0,92546.0,0.010816]
[1768296372340,0.09736,92563.0,92550.0,0.12981413]
[1768296373044,0.09736,92563.0,92546.0,0.010816]
[1768296373334,0.09736,92563.0,92550.0,0.12981413]
[1768296374542,0.09736,92563.0,92548.0,0.010815]
[1768296374730,0.09736,92563.0,92550.0,0.12981413]
[1768296378551,0.09736,92563.0,92550.0,0.11081413]
[1768296379048,0.0973853,92569.0,92554.0,0.010815]
[1768296379253,0.21844472,92568.0,92551.0,0.010815]
[1768296379553,0.1947453,92568.0,92551.0,0.010815]
[1768296380149,0.0973853,92567.0,92551.0,0.010815]
[1768296380355,0.0973853,92566.0,92551.0,0.010815]
[1768296380560,0.0973853,92578.0,92558.0,0.09325045]
[1768296380757,0.02366387,92577.0,92568.0,0.12981413]
[1768296380954,0.09736,92580.0,92562.0,0.10406445]
[1768296381261,0.09736,92579.0,92562.0,0.10406445]
[1768296381956,0.12014295,92575.0,92559.0,0.01097611]
[1768296382159,0.0973853,92575.0,92560.0,0.12981413]
[1768296382361,0.0973853,92575.0,92559.0,0.01097611]
[1768296384370,0.0973853,92575.0,92560.0,0.12981413]
[1768296384748,0.0973853,92575.0,92561.0,0.010814]
[1768296385160,0.09736,92579.0,92565.0,0.010813]
[1768296386162,0.09736,92579.0,92561.0,0.09306345]
[1768296386462,0.010811,92590.0,92573.0,0.010813]
[1768296386463,0.09736,92585.0,92573.0,0.010813]
[1768296387053,0.09736,92585.0,92570.0,0.12981413]
[1768296387266,0.09736,92585.0,92571.0,0.010813]
[1768296387469,0.1947453,92585.0,92571.0,0.010813]
[1768296387965,0.0973853,92585.0,92574.0,0.010812]
[1768296388266,0.09736,92584.0,92574.0,0.010812]
[1768296390266,0.09736,92584.0,92571.0,0.010813]
[1768296390467,0.09736,92584.0,92574.0,0.010812]
[1768296390966,0.12981413,92590.0,92574.0,0.010812]
[1768296391263,0.12009977,92585.0,92571.0,0.010813]
[1768296391569,0.12009977,92585.0,92574.0,0.010812]
[1768296392466,0.0973853,92589.0,92574.0,0.010812]
[1768296392669,0.0973853,92589.0,92577.0,0.010812]
[1768296392860,0.02271447,92594.0,92579.0,0.12981413]
[1768296393168,0.09736,92593.0,92577.0,0.010812]
[1768296393569,0.12103685,92587.0,92563.0,0.09325045]
[1768296393770,0.0973853,92579.0,92568.0,0.010813]
[1768296394157,0.12981413,92580.0,92568.0,0.010813]
[1768296394361,0.12103685,92585.0,92568.0,0.010813]
[1768296395663,0.12103685,92585.0,92564.0,0.18970804]
[1768296397471,0.12103685,92585.0,92569.0,0.010813]
[1768296397770,0.12103685,92585.0,92570.0,0.12981413]
[1768296397971,0.12103685,92585.0,92571.0,0.010813]
[1768296398866,0.12103685,92585.0,92570.0,0.11562713]
[1768296399168,0.12103685,92585.0,92564.0,0.18970804]
[1768296399364,0.12103685,92585.0,92570.0,0.12981413]
[1768296399563,0.12103685,92585.0,92571.0,0.00541019]
[1768296400973,0.12103685,92585.0,92573.0,0.010813]
[1768296401273,0.12103685,92585.0,92572.0,0.010813]
[1768296401473,0.12103685,92585.0,92570.0,0.12981413]
[1768296402272,0.12103685,92585.0,92573.0,0.010812]
[1768296402871,0.11449773,92583.0,92573.0,0.010812]
[1768296403069,0.11449773,92583.0,92570.0,0.12981413]
[1768296403264,0.11449773,92583.0,92564.0,0.18970804]
[1768296404060,0.09526418,92583.0,92565.0,0.09234804]
[1768296404369,0.01923355,92585.0,92575.0,0.010812]
[1768296404570,0.13780684,92584.0,92572.0,0.010813]
[1768296404772,0.02330911,92583.0,92572.0,0.010813]
[1768296404975,0.02330911,92582.0,92572.0,0.010813]
[1768296405173,0.11449773,92584.0,92572.0,0.010813]
[1768296405368,0.02331304,92583.0,92572.0,0.010813]
[1768296405574,0.02331304,92582.0,92565.0,0.09234804]
[1768296405768,0.11449773,92584.0,92565.0,0.09234804]
[1768296405969,0.023313,92583.0,92565.0,0.09234804]
[1768296406168,0.023313,92582.0,92573.0,0.010813]
[1768296406473,0.11449773,92584.0,92573.0,0.010813]
[1768296406776,0.02331737,92583.0,92573.0,0.010813]
[1768296407072,0.02331737,92582.0,92575.0,0.010812]
[1768296407276,0.09526418,92590.0,92573.0,0.09234804]
[1768296407473,0.09732,92589.0,92573.0,0.09234804]
[1768296407778,0.09732,92588.0,92573.0,0.08234804]
[1768296407977,0.09732,92588.0,92569.0,0.09041889]
[1768296408180,0.09732,92588.0,92572.0,0.00016202]
[1768296408367,0.09526418,92590.0,92572.0,0.00016202]
[1768296408567,0.09732,92589.0,92577.0,0.010812]
[1768296408767,0.09732,92588.0,92577.0,0.010812]
[1768296409662,0.2152712,92588.0,92577.0,0.010812]
[1768296409865,0.09526418,92587.0,92576.0,0.010812]
[1768296410268,0.09526418,92587.0,92578.0,0.010812]
[1768296410670,0.09526418,92587.0,92575.0,0.010812]
[1768296411177,0.11973783,92587.0,92575.0,0.010812]
[1768296411372,0.11973783,92587.0,92578.0,0.010812]
[1768296414871,0.1191584,92586.0,92578.0,0.010812]
[1768296415074,0.1191584,92586.0,92572.0,0.00016202]
[1768296415476,0.1191584,92586.0,92566.0,0.16592895]
[1768296415672,0.1191584,92586.0,92567.0,0.09234804]
[1768296416374,0.1191584,92586.0,92577.0,0.010812]
[1768296416579,0.09526418,92586.0,92577.0,0.010812]
[1768296416783,0.09526418,92586.0,92567.0,0.09234804]
[1768296417082,0.09526418,92586.0,92575.0,0.010812]
[1768296417282,0.09526418,92586.0,92577.0,0.010812]
[1768296417580,0.09526418,92586.0,92567.0,0.09234804]
[1768296417776,0.11761326,92586.0,92572.0,0.010813]
[1768296417972,0.11761326,92586.0,92574.0,0.010812]
[1768296418381,0.11761326,92583.0,92571.0,0.010813]
[1768296418883,0.11761326,92583.0,92573.0,0.010813]
[1768296420985,0.09748202,92588.0,92579.0,0.010812]
[1768296421485,0.21367346,92588.0,92579.0,0.010812]
[1768296421885,0.1927462,92588.0,92579.0,0.010812]
[1768296422184,0.09526418,92587.0,92579.0,0.010812]
[1768296422385,0.09526418,92587.0,92581.0,0.010812]
[1768296422687,0.09732,92586.0,92581.0,0.010812]
[1768296422885,0.19258418,92586.0,92581.0,0.010812]
[1768296423088,0.19258418,92586.0,92570.0,0.08716004]
[1768296423486,0.19258418,92586.0,92564.0,0.108174]
[1768296423687,0.21705081,92586.0,92576.0,0.010812]
[1768296423889,0.11973081,92585.0,92564.0,0.108174]
[1768296424090,0.11973081,92585.0,92574.0,0.010812]
[1768296424786,0.11973081,92585.0,92564.0,0.108174]
[1768296424988,0.11973081,92585.0,92578.0,0.010812]
[1768296425289,0.11973081,92585.0,92578.0,0.00814056]
[1768296425874,0.12423181,92581.0,92565.0,0.010813]
[1768296426077,0.09732,92586.0,92536.0,0.010817]
[1768296426078,0.09686833,92570.0,92558.0,0.010814]
[1768296426382,0.25390619,92570.0,92558.0,0.01076308]
[1768296426584,0.12423181,92570.0,92558.0,0.01076308]
[1768296427291,0.12423181,92570.0,92562.0,0.010814]
[1768296427681,0.09686833,92570.0,92562.0,0.010814]
[1768296428983,0.12431502,92570.0,92562.0,0.010814]
[1768296429290,0.12431502,92570.0,92550.0,0.09715808]
[1768296429785,0.09732,92574.0,92551.0,0.19468578]
[1768296429786,0.09686833,92571.0,92551.0,0.19468578]
[1768296430091,0.12431502,92571.0,92551.0,0.19468578]
[1768296430290,0.12431502,92571.0,92560.0,0.010814]
[1768296430591,0.12431502,92570.0,92560.0,0.010814]
[1768296430790,0.12431502,92570.0,92551.0,0.09397208]
[1768296431196,0.12431502,92570.0,92558.0,0.010814]
[1768296431892,0.02997062,92591.0,92576.0,0.010812]
[1768296432083,0.14998442,92590.0,92578.0,0.010812]
[1768296432283,0.14998442,92589.0,92578.0,0.010812]
[1768296432483,0.12046547,92588.0,92578.0,0.010812]
[1768296432688,0.09732,92588.0,92578.0,0.010812]
[1768296433691,0.09732,92588.0,92574.0,0.01097402]
[1768296433889,0.22363719,92588.0,92576.0,0.010812]
[1768296434087,0.02944886,92586.0,92574.0,0.00016202]
[1768296434293,0.09686833,92583.0,92572.0,0.010813]
[1768296434485,0.12631719,92583.0,92563.0,0.0975277]
[1768296434685,0.12631719,92583.0,92565.0,0.010814]
[1768296435092,0.12631719,92583.0,92567.0,0.010813]
[1768296435290,0.12631719,92583.0,92563.0,0.0975277]
[1768296435291,0.12631719,92583.0,92563.0,0.1927962]
[1768296435491,0.12631719,92583.0,92570.0,0.010813]
[1768296435695,0.12631719,92583.0,92572.0,0.010813]
[1768296436689,0.12631719,92583.0,92563.0,0.1927962]
[1768296436690,0.12631719,92583.0,92569.0,0.010813]
[1768296437197,0.12631719,92583.0,92571.0,0.010813]
[1768296437795,0.1368444,92582.0,92571.0,0.010813]
[1768296437999,0.09732,92585.0,92569.0,0.010813]
[1768296438000,0.1368444,92577.0,92569.0,0.010813]
[1768296438399,0.09775129,92577.0,92569.0,0.010813]
[1768296438600,0.09775129,92577.0,92559.0,0.0952685]
[1768296438989,0.09775129,92577.0,92560.0,0.0952685]
[1768296439601,0.09775129,92577.0,92569.0,0.010813]
[1768296441090,0.03909311,92581.0,92569.0,0.010813]
[1768296441798,0.1368444,92581.0,92569.0,0.010813]
[1768296442202,0.09775129,92580.0,92569.0,0.010813]
[1768296443205,0.09775129,92575.0,92566.0,0.010813]
[1768296443701,0.09775129,92575.0,92558.0,0.087133]
[1768296444099,0.09775129,92575.0,92570.0,0.010813]
[1768296444304,0.03864105,92576.0,92570.0,0.010813]
[1768296444701,0.03864105,92576.0,92558.0,0.087133]
[1768296444702,0.03864105,92576.0,92567.0,0.010813]
[1768296445900,0.03864105,92576.0,92558.0,0.087133]
[1768296446103,0.03803865,92574.0,92552.0,0.0495]
[1768296446399,0.09732,92575.0,92549.0,0.09732]
[1768296446400,0.03803865,92569.0,92557.0,0.010814]
[1768296449307,0.03803865,92569.0,92559.0,0.010814]
[1768296449608,0.03803865,92569.0,92561.0,0.010814]
[1768296449805,0.03803865,92569.0,92558.0,0.010814]
[1768296450198,0.03803865,92569.0,92560.0,0.010814]
[1768296450399,9.4e-07,92570.0,92561.0,0.010814]
[1768296451308,9.4e-07,92570.0,92551.0,0.09372012]
[1768296451709,0.00016202,92572.0,92551.0,0.09372012]
[1768296452500,0.00135348,92571.0,92551.0,0.18898862]
[1768296452699,0.00135348,92571.0,92552.0,0.09372012]
[1768296452909,0.00135348,92571.0,92564.0,0.010814]
[1768296454213,0.09775129,92585.0,92560.0,0.12967438]
[1768296454403,0.12057361,92584.0,92566.0,0.09372012]
[1768296454705,0.02325361,92583.0,92569.0,0.010813]
[1768296456112,0.02430639,92583.0,92569.0,0.010813]
[1768296456311,0.00105278,92581.0,92569.0,0.010813]
[1768296456512,0.02325361,92580.0,92569.0,0.010813]
[1768296456716,0.02325361,92580.0,92572.0,0.010813]
[1768296456898,0.09732,92584.0,92572.0,0.010813]
[1768296457103,0.02325696,92583.0,92572.0,0.010813]
[1768296457303,0.02325696,92582.0,92572.0,0.010813]
[1768296457503,0.02325696,92581.0,92572.0,0.010813]
[1768296457704,0.02325696,92580.0,92572.0,0.010813]
[1768296458002,0.00407082,92583.0,92572.0,0.010813]
[1768296458205,0.02325731,92582.0,92572.0,0.010813]
[1768296458506,0.02325731,92581.0,92570.0,0.010813]
[1768296458712,0.02325731,92580.0,92570.0,0.010813]
[1768296458916,0.02325731,92579.0,92565.0,0.09264748]
[1768296459112,0.00407082,92583.0,92565.0,0.09264748]
[1768296459113,0.02325731,92578.0,92565.0,0.09264748]
[1768296459317,0.00407082,92583.0,92565.0,0.09264748]
[1768296459500,0.02325807,92582.0,92565.0,0.09264748]
[1768296459706,0.02325807,92581.0,92565.0,0.09264748]
[1768296459916,0.02325807,92580.0,92565.0,0.09264748]
[1768296460118,0.02325807,92579.0,92565.0,0.09264748]
[1768296460318,0.02325807,92578.0,92569.0,0.010813]
[1768296460616,0.00407082,92583.0,92569.0,0.010813]
[1768296460813,0.0232585,92582.0,92569.0,0.010813]
[1768296461018,0.0232585,92581.0,92569.0,0.010813]
[1768296461218,0.0232585,92580.0,92569.0,0.010813]
[1768296461401,0.0232585,92579.0,92569.0,0.010813]
[1768296461607,0.0232585,92578.0,92569.0,0.010813]
[1768296461813,0.00407082,92583.0,92569.0,0.010813]
[1768296462014,0.12057905,92582.0,92569.0,0.010813]
[1768296462322,0.02325905,92581.0,92569.0,0.010813]
[1768296462619,0.02325905,92580.0,92569.0,0.010813]
[1768296462820,0.02325905,92579.0,92569.0,0.010813]
[1768296463021,0.09732,92582.0,92569.0,0.010813]
[1768296463420,0.00417113,92587.0,92571.0,0.010813]
[1768296463624,1.04966068,92586.0,92571.0,0.010813]
[1768296463812,1.04966068,92586.0,92571.0,0.012813]
[1768296464122,0.09732,92585.0,92574.0,0.010812]
[1768296465820,0.09732,92585.0,92572.0,0.010813]
[1768296466021,0.09732,92585.0,92574.0,0.010812]
[1768296466621,0.09732,92584.0,92572.0,0.09983448]
[1768296466810,0.09732,92584.0,92572.0,0.19811586]
[1768296467011,0.09732,92584.0,92572.0,0.09983448]
[1768296467213,0.09732,92584.0,92573.0,0.002]
[1768296467413,0.09732,92584.0,92577.0,0.010812]
[1768296467720,0.09732,92584.0,92573.0,0.002]
[1768296468521,0.09732,92584.0,92577.0,0.010812]
[1768296470525,0.09732,92584.0,92574.0,0.010812]
[1768296472623,0.09588883,92606.0,92583.0,0.09983448]
[1768296472820,0.00542262,92603.0,92590.0,0.12966232]
[1768296473023,0.0051069,92601.0,92590.0,0.12966232]
[1768296473214,0.02836002,92600.0,92590.0,0.12966232]
[1768296473518,0.12057312,92599.0,92590.0,0.12966232]
[1768296473714,0.02325312,92598.0,92590.0,0.12966232]
[1768296473921,0.09732,92599.0,92588.0,0.12966232]
[1768296474317,0.09732,92599.0,92587.0,0.00016202]
[1768296474519,0.1024269,92599.0,92589.0,0.12966232]
[1768296475522,0.09046621,92606.0,92589.0,0.12266232]
[1768296475710,0.12534159,92605.0,92590.0,0.01281]
[1768296475910,0.10201658,92605.0,92590.0,0.01281]
[1768296476422,0.09732,92607.0,92595.0,0.2294968]
[1768296476627,0.09732,92611.0,92597.0,0.12966232]
[1768296476816,0.09732,92611.0,92595.0,0.19811586]
[1768296477016,0.09732,92611.0,92600.0,0.12966232]
[1768296477211,0.09732,92611.0,92595.0,0.19811586]
[1768296477526,0.09732,92611.0,92600.0,0.12966232]
[1768296478524,0.0046434,92621.0,92600.0,0.12966232]
[1768296478730,0.09732,92624.0,92604.0,0.010809]
[1768296479032,0.12966232,92620.0,92605.0,0.002]
[1768296479423,0.12966232,92620.0,92605.0,0.00216202]
[1768296479736,0.13425264,92620.0,92605.0,0.00216202]
[1768296480228,0.010808,92613.0,92605.0,0.00216202]
[1768296480527,0.00459032,92605.0,92582.0,0.09828138]
[1768296480832,0.01081,92599.0,92583.0,0.10028138]
[1768296481328,0.12966232,92600.0,92583.0,0.10028138]
[1768296481530,0.010809,92603.0,92583.0,0.10028138]
[1768296481732,0.00016202,92601.0,92583.0,0.11109238]
[1768296482026,0.12966232,92610.0,92591.0,0.09828138]
[1768296482330,0.010809,92608.0,92591.0,0.09828138]
[1768296482722,0.09732,92609.0,92591.0,0.09828138]
[1768296483231,0.09732,92608.0,92591.0,0.09428138]
[1768296485323,0.010809,92607.0,92590.0,0.12966232]
[1768296485528,0.010809,92604.0,92590.0,0.12966232]
[1768296486029,0.11366585,92608.0,92590.0,0.12966232]
[1768296486030,0.010809,92607.0,92590.0,0.12966232]
[1768296486332,0.09732,92607.0,92590.0,0.12966232]
[1768296486532,0.09732,92607.0,92588.0,0.09137602]
[1768296486734,0.09732,92607.0,92590.0,0.12966232]
[1768296488032,0.12966232,92610.0,92594.0,0.01081]
[1768296488233,0.09732,92609.0,92592.0,0.09137602]
[1768296488736,0.09732,92609.0,92593.0,0.01081]
[1768296489935,0.09732,92608.0,92593.0,0.01081]
[1768296490234,0.09732,92608.0,92591.0,0.09960208]
[1768296490434,0.12966232,92601.0,92586.0,0.09137602]
[1768296490634,0.12966232,92601.0,92585.0,0.09960208]
[1768296490830,0.12966232,92601.0,92585.0,0.1649781]
[1768296491035,0.12966232,92601.0,92586.0,0.09137602]
[1768296491837,0.12966232,92601.0,92584.0,0.010811]
[1768296492637,0.12966232,92601.0,92584.0,0.10218702]
[1768296493733,0.010809,92605.0,92584.0,0.10218702]
[1768296494039,0.12966232,92600.0,92584.0,0.10218702]
[1768296495028,0.12966232,92600.0,92584.0,0.09137602]
[1768296495840,0.12966232,92600.0,92570.0,0.0495]
[1768296495841,0.12966232,92594.0,92578.0,0.010812]
[1768296496034,0.09827483,92599.0,92578.0,0.010812]
[1768296496234,0.09827483,92599.0,92581.0,0.010812]
[1768296496636,0.09827483,92599.0,92577.0,0.010812]
[1768296496837,0.09827483,92599.0,92580.0,0.12966232]
[1768296497242,0.09827483,92599.0,92577.0,0.010812]
[1768296498243,0.12966232,92590.0,92577.0,0.010812]
[1768296498443,0.09827483,92599.0,92577.0,0.010812]
[1768296498742,0.12966232,92590.0,92575.0,0.072649]
[1768296498942,0.01784759,92595.0,92575.0,0.072649]
[1768296499638,0.01784759,92595.0,92577.0,0.010812]
[1768296499842,0.01466464,92594.0,92577.0,0.010812]
[1768296500233,0.22793715,92600.0,92586.0,0.010811]
[1768296500429,0.09732,92604.0,92583.0,0.09713938]
[1768296500745,0.12966232,92600.0,92587.0,0.010811]
[1768296500947,0.01466464,92604.0,92587.0,0.010811]
[1768296501143,0.12052273,92603.0,92587.0,0.010811]
[1768296501336,0.02320273,92602.0,92587.0,0.010811]
[1768296501945,0.02320273,92602.0,92589.0,0.010811]
[1768296502348,0.02320273,92602.0,92593.0,0.01081]
[1768296502535,0.09827483,92611.0,92593.0,0.091837]
[1768296502536,0.09732,92601.0,92593.0,0.091837]
[1768296502738,0.09732,92601.0,92590.0,0.2268017]
[1768296502739,0.01203536,92622.0,92606.0,0.010809]
[1768296502938,0.1205366,92621.0,92610.0,0.12966232]
[1768296503140,0.09732,92621.0,92609.0,0.091837]
[1768296503452,0.09732,92621.0,92606.0,0.10794838]
[1768296503453,0.12966232,92620.0,92606.0,0.010809]
[1768296504045,0.12966232,92620.0,92603.0,0.010809]
[1768296504641,0.23956981,92620.0,92601.0,0.09713938]
[1768296504844,0.01163266,92619.0,92601.0,0.010809]
[1768296505040,0.10990749,92619.0,92601.0,0.010809]
[1768296505440,0.01163266,92618.0,92601.0,0.010809]
[1768296505947,0.1109013,92614.0,92593.0,0.091837]
[1768296506245,0.12966232,92611.0,92593.0,0.091837]
[1768296506446,0.01262647,92613.0,92593.0,0.071837]
[1768296506640,0.12966232,92610.0,92600.0,0.010809]
[1768296506842,0.09827483,92625.0,92603.0,0.09713938]
[1768296507045,0.03262647,92629.0,92610.0,0.12966232]
[1768296507046,0.09732,92624.0,92610.0,0.12966232]
[1768296507235,0.12966232,92620.0,92606.0,0.010809]
[1768296510254,0.09732,92624.0,92610.0,0.22149932]
[1768296510444,0.09732,92624.0,92610.0,0.12966232]
[1768296510845,0.09732,92624.0,92608.0,0.09713938]
[1768296511141,0.12966232,92620.0,92606.0,0.010809]
[1768296513557,0.09732,92624.0,92606.0,0.010809]
[1768296513759,0.09732,92624.0,92605.0,0.091837]
[1768296513760,0.12966232,92620.0,92608.0,0.010808]
[1768296514150,0.12966232,92620.0,92604.0,0.010809]
[1768296514350,0.12966232,92620.0,92602.0,0.09394838]
[1768296514755,0.12966232,92620.0,92602.0,0.18915426]
[1768296515162,0.12966232,92620.0,92606.0,0.010809]
[1768296515660,0.16133676,92620.0,92603.0,0.010809]
[1768296515853,0.12966232,92613.0,92600.0,0.010809]
[1768296516053,0.12966232,92610.0,92600.0,0.010809]
[1768296516561,0.03156409,92615.0,92604.0,0.010809]
[1768296517161,0.12259555,92619.0,92604.0,0.010809]
[1768296517862,0.12248411,92615.0,92601.0,0.010809]
[1768296518061,0.12248411,92615.0,92600.0,0.12966232]
[1768296518062,0.09103146,92615.0,92600.0,0.12966232]
[1768296518364,0.03145265,92619.0,92600.0,0.12966232]
[1768296518763,0.03145265,92619.0,92600.0,0.2248682]
[1768296518977,0.22069378,92620.0,92607.0,0.010808]
[1768296519773,0.010806,92632.0,92610.0,0.12966232]
[1768296519978,0.12966232,92630.0,92610.0,0.12966232]
[1768296520275,0.02481578,92629.0,92610.0,0.12966232]
[1768296520472,0.02481578,92628.0,92610.0,0.12966232]
[1768296520868,0.12966232,92630.0,92604.0,0.09817529]
[1768296520869,0.02481578,92626.0,92604.0,0.19338117]
[1768296521068,0.11584724,92626.0,92604.0,0.19338117]
[1768296521373,0.02481578,92625.0,92604.0,0.19338117]
[1768296522076,0.02481578,92625.0,92604.0,0.17238117]
[1768296522478,0.02481578,92625.0,92609.0,0.010808]
[1768296522978,0.02122983,92624.0,92609.0,0.010808]
[1768296523368,0.12966232,92620.0,92609.0,0.010808]
[1768296523568,0.12966232,92620.0,92606.0,0.010809]
[1768296523774,0.02122983,92624.0,92606.0,0.010809]
[1768296523977,0.12966232,92620.0,92606.0,0.010809]
[1768296524379,0.12966232,92620.0,92605.0,0.010809]
[1768296524580,0.24202067,92620.0,92602.0,0.010809]
[1768296525078,0.02132689,92618.0,92600.0,0.09520588]
[1768296525571,0.09103146,92619.0,92600.0,0.2248682]
[1768296525776,0.09103146,92619.0,92601.0,0.09520588]
[1768296526578,0.09103146,92619.0,92604.0,0.010809]
[1768296526776,0.09103146,92619.0,92601.0,0.09520588]
[1768296526973,0.02089111,92608.0,92586.0,0.19338117]
[1768296527175,0.12966232,92600.0,92584.0,0.108091]
[1768296527380,0.11192257,92602.0,92584.0,0.108091]
[1768296527579,0.09728,92611.0,92595.0,0.01081]
[1768296527874,0.09728,92611.0,92597.0,0.10601588]
[1768296528273,0.09728,92611.0,92597.0,0.01081]
[1768296528477,0.09728,92611.0,92595.0,0.10898529]
[1768296528675,0.09728,92611.0,92597.0,0.01081]
[1768296529679,0.09728,92611.0,92595.0,0.08198529]
[1768296529980,0.09728,92611.0,92599.0,0.010809]
[1768296535986,0.12963636,92630.0,92590.0,0.09817529]
[1768296535987,0.10533232,92622.0,92600.0,0.09520588]
[1768296536187,0.12042839,92621.0,92606.0,0.010809]
[1768296536394,0.02314883,92620.0,92606.0,0.010809]
[1768296536588,0.10533232,92621.0,92606.0,0.010809]
[1768296536793,0.09728,92622.0,92606.0,0.09520588]
[1768296536982,0.09728,92622.0,92607.0,0.09520588]
[1768296537383,0.09728,92622.0,92607.0,0.07420588]
[1768296537693,0.10533232,92627.0,92607.0,0.07420588]
[1768296537892,0.12042753,92626.0,92614.0,0.010808]
[1768296538087,0.09728,92626.0,92614.0,0.010808]
[1768296538596,0.09103146,92627.0,92616.0,0.010808]
[1768296538785,0.09728,92626.0,92616.0,0.010808]
[1768296540385,0.09728,92626.0,92610.0,0.09520588]
[1768296540996,0.09728,92626.0,92613.0,0.010808]
[1768296542091,0.09728,92626.0,92610.0,0.09520588]
[1768296542896,0.09728,92634.0,92621.0,0.010807]
[1768296543094,0.02314498,92633.0,92621.0,0.010807]
[1768296543393,0.02314498,92632.0,92621.0,0.010807]
[1768296543696,0.02314498,92631.0,92621.0,0.010807]
[1768296543896,0.02314498,92630.0,92618.0,0.010807]
[1768296544193,0.02314498,92629.0,92611.0,0.09817529]
[1768296544492,0.02314498,92628.0,92611.0,0.09817529]
[1768296544797,0.02314498,92627.0,92615.0,0.09626603]
[1768296545091,0.02314498,92626.0,92618.0,0.010807]
[1768296545295,0.05927494,92631.0,92614.0,0.010808]
[1768296545495,0.02313605,92630.0,92614.0,0.010808]
[1768296545795,0.02313605,92629.0,92618.0,0.010807]
[1768296545988,0.02313605,92628.0,92618.0,0.010807]
[1768296546188,0.02313605,92627.0,92618.0,0.010807]
[1768296546492,0.05927494,92631.0,92618.0,0.010807]
[1768296546791,0.02313326,92630.0,92607.0,0.09244532]
[1768296546989,0.02313326,92629.0,92607.0,0.09244532]
[1768296547188,0.02313326,92628.0,92610.0,0.12963636]
[1768296547388,0.09728,92634.0,92614.0,0.09626603]
[1768296547596,0.02313004,92633.0,92615.0,0.09626603]
[1768296547793,0.02313004,92632.0,92617.0,0.09626603]
[1768296547990,0.02313004,92631.0,92617.0,0.09626603]
[1768296548197,0.02313004,92630.0,92623.0,0.010807]
[1768296548502,0.02313004,92629.0,92623.0,0.010807]
[1768296548698,0.09728,92636.0,92623.0,0.010807]
[1768296548899,0.02312719,92635.0,92623.0,0.010807]
[1768296549089,0.02312719,92634.0,92623.0,0.010807]
[1768296549284,0.02312719,92633.0,92623.0,0.010807]
[1768296549497,0.02312719,92632.0,92620.0,0.010807]
[1768296549696,0.02312719,92631.0,92620.0,0.010807]
[1768296549896,0.02312719,92630.0,92620.0,0.010807]
[1768296550092,0.02312719,92629.0,92613.0,0.18871135]
[1768296550402,0.15256532,92632.0,92613.0,0.18871135]
[1768296550603,0.02312258,92631.0,92613.0,0.18871135]